bitfinex-derivatives/quotes_SOLF0:USTF0_20260218
["timestamp","ask_amount","ask_price","bid_price","bid_amount"]
[1771433226413,20.00171152,82.239,82.171,19.81909212]
[1771433227408,20.00171152,82.239,82.17,6.34004824]
[1771433227409,20.00171152,82.239,82.19,19.81909212]
[1771433229212,0.0777516,82.223,82.19,19.81909212]
[1771433229408,0.0777516,82.223,82.191,10.9549]
[1771433229805,0.0777516,82.223,82.191,19.81909212]
[1771433230817,0.0777516,82.223,82.196,10.9542]
[1771433231719,0.0777516,82.223,82.178,19.81909212]
[1771433232313,19.43984617,82.226,82.178,19.81909212]
[1771433232808,10.9513,82.219,82.179,30.77569212]
[1771433233218,19.31872197,82.218,82.179,30.77569212]
[1771433234516,10.9504,82.226,82.185,19.81909212]
[1771433235523,10.9492,82.235,82.198,20.82752606]
[1771433236414,19.30109026,82.246,82.201,20.82752606]
[1771433236415,10.9478,82.246,82.201,20.82752606]
[1771433236621,19.2890767,82.26,82.201,20.82752606]
[1771433237717,10.9465,82.255,82.214,10.9519]
[1771433238725,10.9465,82.255,82.214,31.77942606]
[1771433239922,10.9465,82.255,82.19,6.34004824]
[1771433239923,19.4011046,82.289,82.217,20.82752606]
[1771433240117,19.4011046,82.289,82.231,20.82752606]
[1771433240317,19.4011046,82.265,82.211,20.82752606]
[1771433240918,19.37292695,82.256,82.211,20.82752606]
[1771433241223,19.37292695,82.256,82.191,20.82752606]
[1771433241619,10.9494,82.233,82.191,31.78242606]
[1771433241828,19.37292695,82.241,82.191,20.82752606]
[1771433242029,19.37292695,82.241,82.215,0.07680885]
[1771433242727,10.9493,82.234,82.215,0.07680885]
[1771433242930,10.9493,82.234,82.197,10.9541]
[1771433243429,30.32132695,82.241,82.198,20.82752606]
[1771433243731,30.32132695,82.241,82.2,10.9537]
[1771433245329,10.9492,82.235,82.198,20.82752606]
[1771433246231,10.9492,82.235,82.193,10.9547]
[1771433247928,10.9492,82.235,82.197,10.9542]
[1771433248125,0.07732943,82.222,82.197,10.9542]
[1771433249033,0.07732943,82.222,82.203,10.9533]
[1771433249725,10.9479,82.245,82.206,10.953]
[1771433250327,10.9466,82.254,82.213,20.82752606]
[1771433251937,84.92,82.26,82.217,20.82752606]
[1771433252739,19.76170695,82.272,82.217,20.82752606]
[1771433253341,19.76170695,82.272,82.226,20.82752606]
[1771433253544,84.96,82.279,82.226,20.82752606]
[1771433253742,19.73646027,82.284,82.226,20.82752606]
[1771433254138,19.73646027,82.284,82.21,6.34004824]
[1771433254139,19.73957678,82.268,82.211,20.82752606]
[1771433255448,10.9469,82.252,82.212,10.9521]
[1771433255740,19.73957678,82.268,82.212,10.9521]
[1771433255741,19.73957678,82.268,82.212,20.82752606]
[1771433256039,19.6908986,82.281,82.212,20.82752606]
[1771433256743,19.6908986,82.281,82.224,20.82752606]
[1771433257134,19.6908986,82.281,82.175,20.82752606]
[1771433257334,19.61368061,82.239,82.175,20.82752606]
[1771433257646,19.61368061,82.219,82.175,20.82752606]
[1771433258244,6.34004824,82.22,82.167,10.9582]
[1771433258245,19.29356361,82.216,82.167,10.9582]
[1771433258948,10.9537,82.201,82.16,20.82752606]
[1771433260050,19.27067132,82.203,82.162,10.9589]
[1771433260747,10.9536,82.202,82.16,20.82752606]
[1771433261649,19.27067132,82.203,82.16,31.78662606]
[1771433262346,19.27067132,82.203,82.173,0.07701998]
[1771433265546,10.9523,82.211,82.173,0.07701998]
[1771433265941,18.7861405,82.216,82.174,19.65930859]
[1771433267042,18.7861405,82.216,82.176,19.65930859]
[1771433267249,10.9505,82.225,82.176,19.65930859]
[1771433267742,10.9505,82.225,82.178,19.65930859]
[1771433267943,10.9505,82.225,82.18,10.9564]
[1771433268149,10.9505,82.225,82.192,0.07770317]
[1771433270949,10.9492,82.235,82.198,19.65930859]
[1771433271145,18.67371972,82.245,82.198,19.65930859]
[1771433271853,2.12984827,82.24,82.198,19.65930859]
[1771433272059,21.01009041,82.24,82.198,19.65930859]
[1771433272256,2.12984827,82.23,82.198,19.65930859]
[1771433272454,2.12984827,82.23,82.191,10.955]
[1771433273658,10.9499,82.229,82.191,10.955]
[1771433276060,20.73266238,82.22,82.166,95.7489]
[1771433276362,2.12984827,82.21,82.167,19.65930859]
[1771433276554,2.12984827,82.22,82.171,19.65930859]
[1771433276951,2.12984827,82.23,82.192,10.9548]
[1771433277267,20.68591851,82.25,82.201,19.65930859]
[1771433277567,2.12984827,82.24,82.201,19.65930859]
[1771433278062,10.9487,82.239,82.203,10.9534]
[1771433281656,10.9496,82.232,82.188,20.16364827]
[1771433282653,10.9496,82.232,82.189,10.9552]
[1771433282854,6.33810373,82.26,82.18,6.33810373]
[1771433282855,19.34984132,82.257,82.19,20.16364827]
[1771433283066,19.34984132,82.257,82.192,20.16364827]
[1771433283659,19.34984132,82.257,82.191,95.7489]
[1771433283660,10.9476,82.247,82.205,20.16364827]
[1771433284369,10.9465,82.255,82.213,20.16364827]
[1771433284563,19.33372145,82.269,82.213,20.16364827]
[1771433284762,19.33372145,82.269,82.215,20.16364827]
[1771433285076,19.33372145,82.269,82.232,31.11304827]
[1771433287265,19.33372145,82.269,82.204,20.16364827]
[1771433287675,10.9463,82.257,82.212,20.16364827]
[1771433288462,10.9467,82.254,82.212,20.16364827]
[1771433288666,6.33810373,82.27,82.212,20.16364827]
[1771433288667,19.20781278,82.253,82.212,20.16364827]
[1771433288858,19.19127306,82.269,82.212,20.16364827]
[1771433289464,10.9463,82.257,82.213,20.16364827]
[1771433289857,10.9434,82.279,82.239,20.16364827]
[1771433290063,19.17489956,82.284,82.239,20.16364827]
[1771433291662,10.944,82.274,82.239,20.16364827]
[1771433292173,19.21892964,82.299,82.239,20.16364827]
[1771433292874,6.33810373,82.31,82.262,20.16364827]
[1771433292875,10.9399,82.305,82.262,20.16364827]
[1771433293068,19.67464055,82.329,82.262,20.16364827]
[1771433293269,6.33810373,82.33,82.262,20.16364827]
[1771433293270,19.67464055,82.327,82.262,20.16364827]
[1771433293662,19.67464055,82.329,82.262,20.16364827]
[1771433295072,84.66,82.339,82.27,19.69302182]
[1771433295272,19.02033502,82.346,82.281,19.69302182]
[1771433295476,19.02033502,82.334,82.281,19.69302182]
[1771433295863,19.02033502,82.364,82.3,6.33810373]
[1771433296069,19.02033502,82.364,82.301,19.69302182]
[1771433296268,19.02033502,82.333,82.282,19.69302182]
[1771433297174,10.9362,82.332,82.282,19.69302182]
[1771433297367,19.02033502,82.333,82.282,19.69302182]
[1771433298374,19.02033502,82.327,82.27,6.33810373]
[1771433298580,19.02033502,82.327,82.266,19.69302182]
[1771433299184,29.95733502,82.327,82.288,0.07744563]
[1771433299376,19.02033502,82.326,82.288,0.07744563]
[1771433299679,228.4062,82.369,82.266,19.69302182]
[1771433299680,19.02033502,82.313,82.266,19.69302182]
[1771433300979,19.02033502,82.313,82.24,6.33810373]
[1771433301180,19.02033502,82.313,82.241,19.69302182]
[1771433301677,10.9393,82.309,82.259,10.9458]
[1771433301877,2.1264552,82.3,82.26,2.1264552]
[1771433302473,0.07762552,82.288,82.26,2.1264552]
[1771433303585,2.1264552,82.31,82.26,2.1264552]
[1771433303586,2.1264552,82.31,82.263,19.69302182]
[1771433304683,13.0656552,82.31,82.265,19.69302182]
[1771433306480,2.1264552,82.29,82.251,19.69302182]
[1771433307991,2.1264552,82.29,82.262,0.07684033]
[1771433308382,13.0696552,82.28,82.262,0.07684033]
[1771433308583,32.08999022,82.28,82.235,19.69302182]
[1771433308776,2.1264552,82.27,82.235,19.69302182]
[1771433308982,2.1264552,82.26,82.221,19.69302182]
[1771433309183,2.1264552,82.28,82.231,19.69302182]
[1771433309382,2.1264552,82.29,82.241,19.69302182]
[1771433309584,2.1264552,82.28,82.241,19.69302182]
[1771433309890,19.02033502,82.283,82.241,19.69302182]
[1771433310893,6.33311417,82.29,82.21,6.33311417]
[1771433310894,19.02033502,82.276,82.226,19.69302182]
[1771433311387,19.02033502,82.299,82.226,19.69302182]
[1771433312592,0.07667102,82.271,82.226,19.69302182]
[1771433312790,0.07667102,82.271,82.229,19.69302182]
[1771433314387,0.07667102,82.271,82.235,19.69302182]
[1771433315886,11.02107102,82.271,82.235,19.69302182]
[1771433316481,11.02107102,82.271,82.21,6.33311417]
[1771433316482,19.02033502,82.268,82.222,19.69302182]
[1771433317188,19.02033502,82.268,82.226,19.69302182]
[1771433317790,10.9449,82.267,82.226,19.69302182]
[1771433318496,19.02033502,82.266,82.217,10.9514]
[1771433319091,10.9453,82.264,82.217,10.9514]
[1771433319292,19.02033502,82.266,82.226,19.69302182]
[1771433319490,19.02033502,82.279,82.226,19.69302182]
[1771433319696,10.9447,82.269,82.226,19.69302182]
[1771433320098,19.02033502,82.279,82.226,19.69302182]
[1771433320300,29.96703502,82.253,82.211,19.69302182]
[1771433320593,19.02033502,82.253,82.225,3.554e-05]
[1771433321597,10.9476,82.247,82.225,3.554e-05]
[1771433323303,19.02033502,82.253,82.225,3.554e-05]
[1771433323493,11.11432783,82.318,82.225,3.554e-05]
[1771433323494,19.02033502,82.299,82.225,19.69305736]
[1771433323698,19.02033502,82.293,82.225,19.69305736]
[1771433324092,10.9449,82.267,82.226,10.9503]
[1771433324298,10.9449,82.267,82.226,30.64332182]
[1771433326507,10.9449,82.267,82.227,19.43997846]
[1771433330915,19.02033502,82.277,82.227,19.43997846]
[1771433331611,18.70630752,82.277,82.227,19.43997846]
[1771433332004,18.70630752,82.269,82.227,19.43997846]
[1771433332206,10.9459,82.26,82.227,19.43997846]
[1771433333005,2.12852787,82.25,82.225,3.554e-05]
[1771433333212,2.12852787,82.24,82.225,3.554e-05]
[1771433333812,20.83483539,82.25,82.225,3.554e-05]
[1771433334816,10.9476,82.247,82.225,3.554e-05]
[1771433336211,2.12852787,82.24,82.225,3.554e-05]
[1771433336911,10.9489,82.237,82.225,3.554e-05]
[1771433337617,2.12852787,82.24,82.225,3.554e-05]
[1771433337813,0.07685448,82.239,82.225,3.554e-05]
[1771433341616,2.12852787,82.23,82.191,19.49589273]
[1771433342820,2.12852787,82.22,82.179,126.20129273]
[1771433343311,2.12852787,82.22,82.18,19.49589273]
[1771433344715,2.12852787,82.22,82.181,10.9562]
[1771433345220,2.12852787,82.22,82.182,19.49589273]
[1771433345817,2.12852787,82.21,82.169,19.49589273]
[1771433346031,20.83483539,82.21,82.169,19.49589273]
[1771433346323,10.9535,82.202,82.169,19.49589273]
[1771433346717,2.12852787,82.2,82.169,19.49589273]
[1771433347024,10.9535,82.202,82.169,19.49589273]
[1771433347220,2.12852787,82.19,82.175,4.35e-05]
[1771433347519,18.70630752,82.198,82.175,4.35e-05]
[1771433347726,2.12852787,82.19,82.175,4.35e-05]
[1771433348022,10.9555,82.188,82.175,4.35e-05]
[1771433348822,10.9563,82.182,82.175,4.35e-05]
[1771433349017,10.9563,82.182,82.141,30.45749273]
[1771433349018,20.83483539,82.18,82.13,2.12852787]
[1771433349220,20.83483539,82.18,82.126,19.49589273]
[1771433349221,2.12852787,82.17,82.126,19.49589273]
[1771433349422,2.12852787,82.17,82.131,10.9629]
[1771433349623,2.12852787,82.17,82.132,19.49589273]
[1771433351020,2.12852787,82.18,82.134,19.49589273]
[1771433351726,10.9569,82.177,82.136,19.49589273]
[1771433352126,2.12852787,82.18,82.136,19.49589273]
[1771433352329,2.12852787,82.16,82.125,5.11415525]
[1771433352937,20.83483539,82.17,82.125,5.11415525]
[1771433353736,10.9584,82.166,82.125,5.11415525]
[1771433355438,2.12852787,82.16,82.125,5.11415525]
[1771433356335,2.12852787,82.16,82.125,24.09563586]
[1771433357532,2.12852787,82.16,82.126,18.98148061]
[1771433357728,2.12852787,82.17,82.129,10.9632]
[1771433358042,2.12852787,82.19,82.141,18.98148061]
[1771433358539,2.12852787,82.17,82.128,18.98148061]
[1771433359334,2.12852787,82.17,82.13,10.963]
[1771433359534,2.12852787,82.19,82.141,18.98148061]
[1771433359736,19.67187788,82.197,82.151,18.98148061]
[1771433360045,21.80040575,82.21,82.161,18.98148061]
[1771433360539,10.954,82.199,82.161,18.98148061]
[1771433360740,21.80040575,82.21,82.161,18.98148061]
[1771433361139,10.9536,82.202,82.161,29.94038061]
[1771433361341,21.80040575,82.19,82.147,18.98148061]
[1771433361936,10.9555,82.187,82.147,18.98148061]
[1771433363240,21.80040575,82.19,82.14,2.12852787]
[1771433363241,10.9566,82.179,82.14,2.12852787]
[1771433363635,10.9566,82.179,82.134,95.7489]
[1771433363844,21.80040575,82.16,82.125,5.11415525]
[1771433364136,2.12852787,82.15,82.125,5.11415525]
[1771433364339,13.08632787,82.17,82.126,18.98148061]
[1771433365136,2.12852787,82.16,82.126,18.98148061]
[1771433365634,10.9595,82.158,82.126,18.98148061]
[1771433365838,19.67187788,82.169,82.126,18.98148061]
[1771433366341,10.9582,82.168,82.126,18.98148061]
[1771433366531,19.67187788,82.169,82.126,18.98148061]
[1771433367741,10.959,82.161,82.126,18.98148061]
[1771433373747,10.959,82.161,82.135,0.07709976]
[1771433374748,19.67187788,82.197,82.135,19.05858037]
[1771433375248,19.67187788,82.197,82.126,95.7489]
[1771433375249,10.9545,82.195,82.153,18.98148061]
[1771433376651,10.9545,82.195,82.166,0.07693614]
[1771433379157,19.67187788,82.186,82.139,18.98148061]
[1771433380854,19.67187788,82.213,82.141,18.98148061]
[1771433381057,19.67187788,82.213,82.143,18.98148061]
[1771433381261,19.67187788,82.213,82.145,18.98148061]
[1771433381865,10.9548,82.193,82.152,18.98148061]
[1771433382557,10.9548,82.193,82.118,92.64]
[1771433382558,6.35050803,82.18,82.113,75.3725]
[1771433382747,19.67187788,82.173,82.126,18.98148061]
[1771433383650,10.9586,82.164,82.126,18.98148061]
[1771433383850,30.63047788,82.164,82.126,18.98148061]
[1771433385652,10.9594,82.158,82.126,18.98148061]
[1771433385847,19.67187788,82.164,82.126,18.98148061]
[1771433386654,0.07676318,82.153,82.126,18.98148061]
[1771433387062,0.07676318,82.153,82.113,18.27517661]
[1771433387454,10.9603,82.151,82.113,18.27517661]
[1771433387860,10.961,82.147,82.113,18.27517661]
[1771433388561,2.1345837,82.15,82.113,18.27517661]
[1771433388953,18.38383574,82.152,82.113,18.27517661]
[1771433389457,0.07676318,82.153,82.121,18.27517661]
[1771433390053,20.51841944,82.17,82.121,18.27517661]
[1771433390761,31.47631944,82.17,82.122,18.27517661]
[1771433391154,10.9579,82.17,82.131,18.27517661]
[1771433391350,31.47631944,82.17,82.131,18.27517661]
[1771433392762,20.51841944,82.17,82.131,18.27517661]
[1771433393449,10.9579,82.169,82.131,18.27517661]
[1771433400057,2.1345837,82.17,82.131,18.27517661]
[1771433400253,2.1345837,82.19,82.141,19.59118966]
[1771433401167,18.50913967,82.189,82.141,19.59118966]
[1771433401352,2.1345837,82.18,82.141,19.59118966]
[1771433402062,20.64372337,82.18,82.141,19.59118966]
[1771433402368,10.9586,82.164,82.128,19.59118966]
[1771433403259,2.1345837,82.17,82.128,19.59118966]
[1771433404655,10.958,82.169,82.128,19.59118966]
[1771433405862,10.9587,82.163,82.128,19.59118966]
[1771433406770,10.9596,82.157,82.128,19.59118966]
[1771433407664,36.5,82.195,82.13,21.72577336]
[1771433407665,2.1345837,82.18,82.13,21.72577336]
[1771433408771,10.9569,82.177,82.133,19.59118966]
[1771433409666,18.50913967,82.196,82.15,2.1345837]
[1771433409861,18.50913967,82.209,82.161,19.59118966]
[1771433410664,10.9535,82.203,82.162,19.59118966]
[1771433411260,10.9535,82.203,82.171,19.59118966]
[1771433413672,18.50913967,82.209,82.171,19.59118966]
[1771433414274,18.50913967,82.209,82.163,10.9586]
[1771433414770,10.9529,82.207,82.163,10.9586]
[1771433414970,21.70821168,82.2,82.159,19.59118966]
[1771433415170,2.1345837,82.19,82.146,19.32825627]
[1771433415976,10.9549,82.192,82.152,19.32825627]
[1771433416276,13.0884837,82.2,82.152,19.32825627]
[1771433416676,10.9546,82.194,82.154,19.32825627]
[1771433418176,10.9554,82.188,82.154,19.32825627]
[1771433420276,10.9546,82.195,82.154,19.32825627]
[1771433421071,10.9557,82.186,82.154,19.32825627]
[1771433421877,2.1345837,82.19,82.154,19.32825627]
[1771433423768,21.70821168,82.18,82.143,10.9613]
[1771433424768,2.1345837,82.17,82.13,2.1345837]
[1771433425673,2.1345837,82.17,82.131,10.9629]
[1771433425869,21.70821168,82.17,82.131,10.9629]
[1771433426270,19.57362798,82.167,82.129,19.32825627]
[1771433426476,2.1345837,82.16,82.114,19.32825627]
[1771433426776,10.9571,82.176,82.133,10.9626]
[1771433426982,10.9571,82.176,82.134,19.32825627]
[1771433427282,21.70821168,82.19,82.141,19.32825627]
[1771433428075,2.1345837,82.19,82.141,19.32825627]
[1771433428275,21.70821168,82.2,82.151,19.32825627]
[1771433428777,10.9556,82.187,82.151,19.32825627]
[1771433428976,2.1345837,82.21,82.161,19.32825627]
[1771433429381,10.9529,82.207,82.163,19.32825627]
[1771433429777,10.9529,82.207,82.171,19.32825627]
[1771433431383,21.70821168,82.2,82.158,19.32825627]
[1771433431576,21.70821168,82.19,82.145,19.32825627]
[1771433431770,2.1345837,82.18,82.145,19.32825627]
[1771433431976,21.70821168,82.19,82.145,19.32825627]
[1771433432681,13.0910837,82.18,82.145,19.32825627]
[1771433433074,32.66471168,82.18,82.138,19.32825627]
[1771433433471,10.9575,82.173,82.138,19.32825627]
[1771433433871,2.1345837,82.17,82.138,19.32825627]
[1771433434071,10.9566,82.179,82.138,19.32825627]
[1771433435281,10.9556,82.187,82.141,19.32825627]
[1771433436974,2.1345837,82.18,82.141,19.32825627]
[1771433437877,0.07694943,82.169,82.142,10.9614]
[1771433438077,0.07694943,82.169,82.142,30.28965627]
[1771433438477,0.07694943,82.169,82.143,19.32825627]
[1771433439588,19.57362798,82.208,82.151,19.32825627]
[1771433440090,2.84362552,82.2,82.151,19.32825627]
[1771433440384,19.57362798,82.189,82.144,75.3725]
[1771433440589,2.84362552,82.18,82.138,19.32825627]
[1771433440782,13.80012552,82.18,82.138,19.32825627]
[1771433440983,2.84362552,82.17,82.124,19.32825627]
[1771433441485,22.4172535,82.18,82.13,2.84362552]
[1771433441693,10.9581,82.168,82.128,19.32825627]
[1771433442282,10.9581,82.168,82.129,10.9632]
[1771433442678,10.9573,82.175,82.13,2.84362552]
[1771433442883,22.4172535,82.17,82.129,19.32825627]
[1771433443086,22.4172535,82.17,82.12,2.84362552]
[1771433443287,10.9594,82.159,82.115,19.32825627]
[1771433443887,10.9583,82.166,82.122,19.32825627]
[1771433445692,10.9583,82.166,82.125,18.17784079]
[1771433445889,10.9573,82.174,82.125,18.17784079]
[1771433446088,10.9573,82.174,82.131,18.17784079]
[1771433446395,18.58114329,82.186,82.14,29.13954079]
[1771433447188,10.9559,82.185,82.143,18.17784079]
[1771433447591,18.58114329,82.199,82.143,18.17784079]
[1771433447988,18.58114329,82.199,82.156,0.07737191]
[1771433448891,10.9546,82.194,82.156,0.07737191]
[1771433452391,10.9546,82.194,82.156,18.2552127]
[1771433454791,18.58114329,82.199,82.156,18.2552127]
[1771433454792,18.58114329,82.199,82.158,29.13714079]
[1771433454988,18.58114329,82.199,82.159,18.17784079]
[1771433455696,10.9541,82.198,82.159,18.17784079]
[1771433456894,3.03237009,82.2,82.165,29.13624079]
[1771433457092,170.2162,82.286,82.171,18.07056673]
[1771433457093,18.58114329,82.211,82.171,18.07056673]
[1771433457893,10.9526,82.209,82.171,18.07056673]
[1771433458396,18.58114329,82.211,82.171,18.07056673]
[1771433459695,18.58114329,82.211,82.172,10.9574]
[1771433460098,18.44413151,82.209,82.16,3.03237009]
[1771433460298,18.44413151,82.209,82.159,18.07056673]
[1771433460603,18.44413151,82.197,82.146,18.07056673]
[1771433460801,21.4765016,82.19,82.146,18.07056673]
[1771433461205,3.03237009,82.18,82.146,18.07056673]
[1771433461509,21.4765016,82.18,82.139,10.9618]
[1771433461897,10.9561,82.183,82.143,10.9613]
[1771433462093,10.9561,82.183,82.151,0.07696298]
[1771433462801,10.9551,82.191,82.151,18.14752971]
[1771433463604,10.9556,82.187,82.151,18.14752971]
[1771433464604,29.39873151,82.194,82.151,18.14752971]
[1771433465704,10.9555,82.187,82.151,18.14752971]
[1771433469109,10.9564,82.181,82.151,0.07696298]
[1771433469415,21.4765016,82.18,82.151,0.07696298]
[1771433469807,10.9566,82.179,82.151,0.07696298]
[1771433470008,10.9566,82.179,82.14,3.03237009]
[1771433470009,18.44413151,82.192,82.141,18.07056673]
[1771433471815,10.9556,82.187,82.143,18.07056673]
[1771433472017,18.44413151,82.192,82.143,18.07056673]
[1771433473717,18.44413151,82.192,82.152,18.07056673]
[1771433473718,29.39903151,82.192,82.152,18.07056673]
[1771433474320,10.9549,82.192,82.156,18.07056673]
[1771433474517,18.44413151,82.218,82.161,18.07056673]
[1771433474713,5.0,82.235,82.171,18.07056673]
[1771433474714,18.44413151,82.229,82.171,18.07056673]
[1771433475212,10.9509,82.222,82.181,18.63310786]
[1771433476714,15.9492,82.235,82.19,3.03237009]
[1771433476915,5.0,82.235,82.2,3.03237009]
[1771433477115,5.0,82.235,82.2,21.66547795]
[1771433477314,5.0,82.235,82.2,18.63310786]
[1771433478321,5.0,82.235,82.2,21.66547795]
[1771433481111,5.0,82.235,82.201,10.9536]
[1771433482116,5.0,82.235,82.201,29.58670786]
[1771433482517,5.0,82.235,82.204,18.63310786]
[1771433482722,18.3813574,82.261,82.211,18.63310786]
[1771433482920,18.3813574,82.261,82.221,10.9509]
[1771433483122,18.3813574,82.236,82.164,18.63310786]
[1771433483319,21.41372749,82.22,82.176,18.63310786]
[1771433483515,21.41372749,82.22,82.17,18.63310786]
[1771433484020,21.41372749,82.22,82.19,0.07702351]
[1771433484218,18.3813574,82.219,82.19,0.07702351]
[1771433486620,10.9517,82.216,82.19,0.07702351]
[1771433487324,29.3330574,82.216,82.17,21.66547795]
[1771433487529,18.3813574,82.215,82.17,21.66547795]
[1771433487729,18.3813574,82.213,82.17,21.66547795]
[1771433488029,18.3813574,82.213,82.17,18.63310786]
[1771433488630,10.9533,82.204,82.17,18.63310786]
[1771433489826,18.3813574,82.213,82.17,21.66547795]
[1771433490131,18.3813574,82.225,82.17,21.66547795]
[1771433490830,18.3813574,82.225,82.181,18.63310786]
[1771433491233,10.9514,82.219,82.181,18.63310786]
[1771433491527,3.03237009,82.22,82.161,18.63310786]
[1771433491726,21.41372749,82.23,82.181,18.63310786]
[1771433492226,10.9513,82.219,82.181,18.63310786]
[1771433494028,18.3813574,82.202,82.161,18.63310786]
[1771433495129,18.3813574,82.215,82.161,18.63310786]
[1771433496228,29.3331574,82.215,82.161,18.63310786]
[1771433496534,3.03237009,82.21,82.161,18.63310786]
[1771433496832,21.4069031,82.21,82.161,18.63310786]
[1771433497330,10.9536,82.202,82.161,18.63310786]
[1771433500120,21.4069031,82.21,82.161,18.63310786]
[1771433500121,10.9543,82.196,82.161,18.63310786]
[1771433502441,10.9522,82.212,82.177,18.63310786]
[1771433503033,21.41372749,82.2,82.159,10.9592]
[1771433503339,3.03237009,82.19,82.149,18.63310786]
[1771433503538,21.41372749,82.2,82.149,18.63310786]
[1771433504039,10.9564,82.181,82.149,18.63310786]
[1771433505435,10.9569,82.177,82.14,10.9617]
[1771433505742,21.57634966,82.17,82.126,19.51601186]
[1771433506438,18.54397957,82.168,82.126,19.51601186]
[1771433507139,10.9583,82.167,82.126,19.51601186]
[1771433507341,3.03237009,82.16,82.125,5.11415525]
[1771433507946,18.54397957,82.167,82.125,5.11415525]
[1771433508742,10.9594,82.159,82.125,5.11415525]
[1771433508943,18.54397957,82.159,82.125,5.11415525]
[1771433510643,10.9602,82.152,82.125,5.11415525]
[1771433512342,18.54397957,82.158,82.125,5.11415525]
[1771433513045,10.961,82.146,82.125,5.525e-05]
[1771433513251,29.50497957,82.146,82.125,5.525e-05]
[1771433514254,29.50637957,82.136,82.125,5.525e-05]
[1771433516156,80.48,82.18,82.125,5.525e-05]
[1771433516157,18.54397957,82.169,82.125,19.51606711]
[1771433516348,3.03520153,82.18,82.125,19.51606711]
[1771433516650,18.54397957,82.2,82.15,3.03520153]
[1771433517046,18.54397957,82.189,82.14,3.03520153]
[1771433517247,18.24363997,82.188,82.14,3.03520153]
[1771433517851,11.31195994,82.252,82.136,19.51601186]
[1771433517852,18.24363997,82.179,82.136,19.51601186]
[1771433518349,10.9568,82.178,82.137,10.9621]
[1771433518551,10.9568,82.178,82.137,30.61343409]
[1771433519052,10.9568,82.178,82.138,19.65133409]
[1771433519451,10.9557,82.186,82.151,19.65133409]
[1771433520853,18.24363997,82.169,82.125,5.525e-05]
[1771433521055,3.03520153,82.16,82.125,5.525e-05]
[1771433521549,0.07673681,82.151,82.125,5.525e-05]
[1771433522555,18.24363997,82.171,82.13,3.03520153]
[1771433522748,18.24363997,82.171,82.13,22.68653562]
[1771433522958,3.03520153,82.18,82.13,22.68653562]
[1771433523260,18.24363997,82.185,82.125,5.525e-05]
[1771433523261,10.9577,82.171,82.14,3.03520153]
[1771433523457,18.24363997,82.179,82.125,5.525e-05]
[1771433523654,18.24363997,82.163,82.125,5.525e-05]
[1771433524355,10.9603,82.152,82.125,5.525e-05]
[1771433525355,18.24363997,82.176,82.125,5.525e-05]
[1771433528664,10.959,82.161,82.125,5.525e-05]
[1771433528960,18.24363997,82.187,82.125,5.525e-05]
[1771433529656,18.24363997,82.187,82.137,19.65133409]
[1771433530660,10.9563,82.181,82.14,19.65133409]
[1771433530855,18.24363997,82.187,82.14,19.65133409]
[1771433531056,18.24363997,82.204,82.14,19.65133409]
[1771433531960,18.24363997,82.186,82.126,19.65133409]
[1771433532265,18.24363997,82.186,82.125,5.525e-05]
[1771433532465,18.24363997,82.167,82.125,5.525e-05]
[1771433533662,10.9588,82.163,82.125,10.96375525]
[1771433534667,18.24363997,82.167,82.125,5.525e-05]
[1771433534668,10.9595,82.157,82.125,5.525e-05]
[1771433535164,18.24363997,82.167,82.125,5.525e-05]
[1771433535963,10.961,82.147,82.125,5.525e-05]
[1771433536663,10.9618,82.14,82.125,5.525e-05]
[1771433537166,19.29004001,82.154,82.125,5.525e-05]
[1771433537770,10.9631,82.131,82.125,5.525e-05]
[1771433541868,10.9612,82.145,82.125,5.525e-05]
[1771433542169,19.29004001,82.157,82.125,5.525e-05]
[1771433543366,10.9627,82.134,82.125,5.525e-05]
[1771433544376,10.9634,82.128,82.125,5.525e-05]
[1771433544674,3.03613376,82.14,82.125,5.525e-05]
[1771433544873,19.29004001,82.144,82.125,5.525e-05]
[1771433545668,10.9633,82.129,82.125,5.525e-05]
[1771433546672,19.29004001,82.126,82.08,49.32884074]
[1771433546871,19.29004001,82.126,82.08,19.19179819]
[1771433547071,19.29004001,82.139,82.08,22.22793195]
[1771433547265,10.9623,82.137,82.096,19.19179819]
[1771433547676,3.03613376,82.14,82.096,19.19179819]
[1771433547873,3.03613376,82.15,82.096,19.19179819]
[1771433548177,19.29004001,82.149,82.101,19.19179819]
[1771433548776,10.9618,82.14,82.101,19.19179819]
[1771433549477,10.9618,82.14,82.101,30.15879819]
[1771433550073,10.9618,82.14,82.102,19.19179819]
[1771433554282,10.961,82.147,82.104,19.19179819]
[1771433555679,10.961,82.147,82.106,19.19179819]
[1771433556683,10.96,82.154,82.112,19.19179819]
[1771433556983,19.29004001,82.173,82.121,19.19179819]
[1771433557193,19.29004001,82.173,82.131,19.19179819]
[1771433558787,10.9577,82.171,82.133,19.19179819]
[1771433558985,19.09578563,82.17,82.106,12.18]